fUSD/lending_fUSD_20240620
["ID","MTS","AMOUNT","RATE_DAILY","PERIOD"]
[329942309,1718851841274,-500.0,0.00013698,2]
[329942310,1718851841284,-510.45452504,0.00013698,2]
[329942311,1718851841294,-501.41457339,0.00013698,2]
[329942312,1718851841303,-505.42255116,0.00013698,2]
[329942313,1718851841312,-2769.70785722,0.00013698,2]
[329942314,1718851841327,-622.83715495,0.00013698,2]
[329942315,1718851841394,-2835.95935006,0.00013698,2]
[329942316,1718851841406,-455.18188828,0.00013698,2]
[329942317,1718851841419,-1189.99134495,0.00013698,2]
[329942318,1718851841430,-678.22150474,0.00013698,2]
[329942319,1718851841597,-470.52819975,0.00013698,2]
[329942320,1718851841610,-567.96482124,0.00013698,2]
[329942321,1718851841812,-10409.60787881,0.00013698,2]
[329942322,1718851841822,-607.95,0.00013698,2]
[329942323,1718851841831,-559.61,0.00013698,2]
[329942324,1718851841840,-500.0,0.00013698,2]
[329942325,1718851841849,-500.0,0.00013698,2]
[329942326,1718851841859,-860.04,0.00013698,2]
[329942327,1718851841869,-500.0,0.00013698,2]
[329942328,1718851841878,-874.07,0.00013698,2]
[329942329,1718851841888,-500.0,0.00013698,2]
[329942330,1718851841898,-564.78,0.00013698,2]
[329942331,1718851841907,-312.43076257,0.00013698,2]
[329942332,1718851841916,-500.0,0.00013698,2]
[329942333,1718851841925,-1254.92,0.00013698,2]
[329942334,1718851841934,-618.02,0.00013698,2]
[329942335,1718851841943,-500.0,0.00013698,2]
[329942336,1718851841952,-500.0,0.00013698,2]
[329942337,1718851841961,-500.0,0.00013698,2]
[329942338,1718851841970,-504.31629218,0.00013698,2]
[329942339,1718851841979,-500.0,0.00013698,2]
[329942340,1718851841989,-500.0,0.00013698,2]
[329942341,1718851842003,-500.0,0.00013698,2]
[329942342,1718851842013,-500.0,0.00013698,2]
[329942343,1718851842023,-611.59204898,0.00013698,2]
[329942344,1718851842032,-500.0,0.00013698,2]
[329942345,1718851842043,-500.0,0.00013698,2]
[329942346,1718851842054,-500.0,0.00013698,2]
[329942347,1718851842064,-502.23614207,0.00013698,2]
[329942348,1718851842073,-1012.49,0.00013698,2]
[329942349,1718851842082,-500.0,0.00013698,2]
[329942350,1718851842091,-502.62617705,0.00013698,2]
[329942351,1718851842100,-500.0,0.00013698,2]
[329942352,1718851842110,-500.0,0.00013698,2]
[329942353,1718851842122,-500.0,0.00013698,2]
[329942354,1718851842133,-500.0,0.00013698,2]
[329942355,1718851842143,-502.50810749,0.00013698,2]
[329942356,1718851842153,-502.73960932,0.00013698,2]
[329942357,1718851842163,-500.0,0.00013698,2]
[329942358,1718851842173,-900.59,0.00013698,2]
[329942359,1718851842182,-503.24354835,0.00013698,2]
[329942360,1718851842191,-500.0,0.00013698,2]
[329942361,1718851842201,-500.0,0.00013698,2]
[329942362,1718851842211,-500.0,0.00013698,2]
[329942363,1718851842220,-506.84,0.00013698,2]
[329942364,1718851842231,-500.0,0.00013698,2]
[329942365,1718851842242,-517.12571109,0.00013698,2]
[329942366,1718851842253,-500.0,0.00013698,2]
[329942367,1718851842262,-500.0,0.00013698,2]
[329942368,1718851842272,-500.0,0.00013698,2]
[329942369,1718851842281,-500.0,0.00013698,2]
[329942370,1718851842290,-579.22,0.00013698,2]
[329942371,1718851842300,-522.2514175,0.00013698,2]
[329942372,1718851842309,-500.0,0.00013698,2]
[329942373,1718851842318,-500.0,0.00013698,2]
[329942374,1718851842327,-500.0,0.00013698,2]
[329942375,1718851842336,-500.0,0.00013698,2]
[329942376,1718851842345,-504.10888051,0.00013698,2]
[329942377,1718851842354,-505.81928202,0.00013698,2]
[329942378,1718851842363,-503.68903962,0.00013698,2]
[329942379,1718851842372,-500.0,0.00013698,2]
[329942380,1718851842381,-504.95410227,0.00013698,2]
[329942381,1718851842390,-500.0,0.00013698,2]
[329942382,1718851842399,-1022.13,0.00013698,2]
[329942383,1718851842408,-500.0,0.00013698,2]
[329942384,1718851842417,-500.0,0.00013698,2]
[329942385,1718851842426,-505.09,0.00013698,2]
[329942386,1718851842435,-500.0,0.00013698,2]
[329942387,1718851842444,-500.0,0.00013698,2]
[329942388,1718851842453,-500.0,0.00013698,2]
[329942389,1718851842462,-500.0,0.00013698,2]
[329942390,1718851842472,-500.0,0.00013698,2]
[329942391,1718851842481,-500.0,0.00013698,2]
[329942392,1718851842490,-834.59,0.00013698,2]
[329942393,1718851842499,-500.0,0.00013698,2]
[329942394,1718851842509,-510.68426769,0.00013698,2]
[329942395,1718851842518,-1176.99,0.00013698,2]
[329942396,1718851842527,-500.0,0.00013698,2]
[329942397,1718851842536,-500.0,0.00013698,2]
[329942398,1718851842546,-681.37,0.00013698,2]
[329942399,1718851842555,-497.58367482,0.00013698,2]
[329942400,1718851842570,-500.0,0.00013698,2]
[329942401,1718851842579,-500.0,0.00013698,2]
[329942402,1718851842589,-500.0,0.00013698,2]
[329942403,1718851842599,-605.68604526,0.00013698,2]
[329942404,1718851842608,-834.15,0.00013698,2]
[329942405,1718851842617,-759.77,0.00013698,2]
[329942406,1718851842627,-1156.52,0.00013698,2]
[329942407,1718851842636,-491.5,0.00013698,2]
[329942408,1718851842648,-500.0,0.00013698,2]
[329942409,1718851842658,-800.1,0.00013698,2]
[329942410,1718851842667,-500.0,0.00013698,2]
[329942411,1718851842676,-501.27022507,0.00013698,2]
[329942412,1718851842685,-500.0,0.00013698,2]
[329942413,1718851842694,-500.0,0.00013698,2]
[329942414,1718851842704,-888.631204,0.00013698,2]
[329942431,1718851844246,-193.168796,0.00013698,2]
[329942433,1718851844256,-501.68944702,0.00013698,2]
[329942434,1718851844266,-500.0,0.00013698,2]
[329942436,1718851844276,-591.0,0.00013698,2]
[329942438,1718851844285,-500.0,0.00013698,2]
[329942440,1718851844295,-500.0,0.00013698,2]
[329942442,1718851844305,-500.0,0.00013698,2]
[329942445,1718851844314,-749.29,0.00013698,2]
[329942448,1718851844323,-500.0,0.00013698,2]
[329942450,1718851844332,-500.0,0.00013698,2]
[329942452,1718851844342,-500.0,0.00013698,2]
[329942454,1718851844351,-500.0,0.00013698,2]
[329942456,1718851844361,-508.62823352,0.00013698,2]
[329942457,1718851844369,-500.0,0.00013698,2]
[329942459,1718851844378,-500.0,0.00013698,2]
[329942461,1718851844387,-500.0,0.00013698,2]
[329942463,1718851844397,-534.27,0.00013698,2]
[329942465,1718851844407,-500.0,0.00013698,2]
[329942467,1718851844416,-746.73,0.00013698,2]
[329942468,1718851844425,-500.0,0.00013698,2]
[329942469,1718851844435,-500.0,0.00013698,2]
[329942470,1718851844444,-507.99320166,0.00013698,2]
[329942471,1718851844453,-500.0,0.00013698,2]
[329942472,1718851844463,-1323.67,0.00013698,2]
[329942473,1718851844472,-1161.91,0.00013698,2]
[329942474,1718851844482,-500.0,0.00013698,2]
[329942475,1718851844494,-500.0,0.00013698,2]
[329942476,1718851844504,-843.29,0.00013698,2]
[329942477,1718851844514,-508.58673986,0.00013698,2]
[329942478,1718851844523,-500.0,0.00013698,2]
[329942479,1718851844532,-500.0,0.00013698,2]
[329942480,1718851844543,-500.0,0.00013698,2]
[329942481,1718851844552,-500.0,0.00013698,2]
[329942482,1718851844563,-500.0,0.00013698,2]
[329942483,1718851844576,-500.0,0.00013698,2]
[329942484,1718851844586,-500.0,0.00013698,2]
[329942485,1718851844595,-500.0,0.00013698,2]
[329942486,1718851844605,-510.00089875,0.00013698,2]
[329942487,1718851844615,-500.0,0.00013698,2]
[329942488,1718851844625,-681.48,0.00013698,2]
[329942489,1718851844634,-500.0,0.00013698,2]
[329942490,1718851844646,-500.0,0.00013698,2]
[329942491,1718851844656,-500.0,0.00013698,2]
[329942492,1718851844666,-500.0,0.00013698,2]
[329942493,1718851844675,-583.37,0.00013698,2]
[329942494,1718851844685,-500.0,0.00013698,2]
[329942495,1718851844695,-500.0,0.00013698,2]
[329942496,1718851844704,-702.01,0.00013698,2]
[329942497,1718851844714,-500.0,0.00013698,2]
[329942498,1718851844724,-500.0,0.00013698,2]
[329942499,1718851844736,-500.0,0.00013698,2]
[329942500,1718851844746,-521.71397202,0.00013698,2]
[329942501,1718851844755,-500.0,0.00013698,2]
[329942502,1718851844764,-690.81,0.00013698,2]
[329942503,1718851844774,-923.57,0.00013698,2]
[329942504,1718851844783,-500.0,0.00013698,2]
[329942505,1718851844793,-500.0,0.00013698,2]
[329942506,1718851844803,-500.0,0.00013698,2]
[329942507,1718851844812,-500.0,0.00013698,2]
[329942508,1718851844822,-500.0,0.00013698,2]
[329942509,1718851844831,-632.2,0.00013698,2]
[329942510,1718851844841,-500.0,0.00013698,2]
[329942511,1718851844851,-777.87,0.00013698,2]
[329942512,1718851844860,-562.6617169,0.00013698,2]
[329942513,1718851844870,-500.0,0.00013698,2]
[329942514,1718851844879,-500.0,0.00013698,2]
[329942515,1718851844888,-1174.49,0.00013698,2]
[329942516,1718851844898,-500.0,0.00013698,2]
[329942517,1718851844908,-639.34,0.00013698,2]
[329942518,1718851844918,-500.0,0.00013698,2]
[329942519,1718851844927,-500.0,0.00013698,2]
[329942520,1718851844937,-500.0,0.00013698,2]
[329942521,1718851844946,-591.94,0.00013698,2]
[329942522,1718851844956,-500.0,0.00013698,2]
[329942523,1718851844966,-1039.35,0.00013698,2]
[329942524,1718851844975,-482.79562767,0.00013698,2]
[329942525,1718851844986,-496.0,0.00013698,2]
[329942526,1718851844995,-500.0,0.00013698,2]
[329942527,1718851845005,-500.0,0.00013698,2]
[329942528,1718851845015,-500.0,0.00013698,2]
[329942529,1718851845024,-1089.02,0.00013698,2]
[329942530,1718851845034,-500.0,0.00013698,2]
[329942531,1718851845043,-500.0,0.00013698,2]
[329942532,1718851845053,-500.0,0.00013698,2]
[329942533,1718851845062,-851.15,0.00013698,2]
[329942534,1718851845071,-505.0903923,0.00013698,2]
[329942535,1718851845080,-500.0,0.00013698,2]
[329942536,1718851845090,-499.0,0.00013698,2]
[329942537,1718851845099,-519.32,0.00013698,2]
[329942538,1718851845109,-500.0,0.00013698,2]
[329942539,1718851845118,-615.92,0.00013698,2]
[329942540,1718851845127,-522.42,0.00013698,2]
[329942541,1718851845136,-500.0,0.00013698,2]
[329942542,1718851845146,-500.0,0.00013698,2]
[329942543,1718851845155,-500.0,0.00013698,2]
[329942544,1718851845164,-500.0,0.00013698,2]
[329942545,1718851845174,-505.4,0.00013698,2]
[329942546,1718851845184,-500.0,0.00013698,2]
[329942547,1718851845193,-500.0,0.00013698,2]
[329942548,1718851845203,-500.0,0.00013698,2]
[329942549,1718851845212,-500.0,0.00013698,2]
[329942550,1718851845222,-500.0,0.00013698,2]
[329942551,1718851845232,-475.0,0.00013698,2]
[329942552,1718851845243,-509.70582393,0.00013698,2]
[329942553,1718851845252,-500.0,0.00013698,2]
[329942554,1718851845261,-450.0,0.00013698,2]
[329942555,1718851845270,-745.29,0.00013698,2]
[329942556,1718851845280,-501.59799736,0.00013698,2]
[329942557,1718851845290,-500.0,0.00013698,2]
[329942558,1718851845299,-637.21,0.00013698,2]
[329942559,1718851845309,-535.27,0.00013698,2]
[329942560,1718851845319,-497.65992239,0.00013698,2]
[329942561,1718851845328,-500.0,0.00013698,2]
[329942562,1718851845338,-1134.05,0.00013698,2]
[329942563,1718851845347,-1078.2,0.00013698,2]
[329942564,1718851845357,-500.0,0.00013698,2]
[329942565,1718851845367,-500.0,0.00013698,2]
[329942566,1718851845377,-493.0,0.00013698,2]
[329942567,1718851845386,-500.0,0.00013698,2]
[329942568,1718851845396,-500.0,0.00013698,2]
[329942569,1718851845406,-500.0,0.00013698,2]
[329942570,1718851845415,-870.32,0.00013698,2]
[329942571,1718851845425,-500.0,0.00013698,2]
[329942572,1718851845435,-500.0,0.00013698,2]
[329942573,1718851845444,-1063.09,0.00013698,2]
[329942574,1718851845454,-1029.9,0.00013698,2]
[329942575,1718851845463,-500.0,0.00013698,2]
[329942576,1718851845473,-500.0,0.00013698,2]
[329942577,1718851845483,-500.0,0.00013698,2]
[329942578,1718851845495,-500.0,0.00013698,2]
[329942579,1718851845504,-500.0,0.00013698,2]
[329942580,1718851845514,-500.0,0.00013698,2]
[329942581,1718851845524,-500.0,0.00013698,2]
[329942582,1718851845533,-500.0,0.00013698,2]
[329942583,1718851845543,-500.0,0.00013698,2]
[329942584,1718851845552,-500.0,0.00013698,2]
[329942585,1718851845562,-702.02,0.00013698,2]
[329942586,1718851845577,-909.2,0.00013698,2]
[329942587,1718851845587,-500.0,0.00013698,2]
[329942588,1718851845597,-500.0,0.00013698,2]
[329942589,1718851845608,-500.0,0.00013698,2]
[329942590,1718851845619,-503.36823151,0.00013698,2]
[329942591,1718851845628,-500.0,0.00013698,2]
[329942592,1718851845637,-460.0,0.00013698,2]
[329942593,1718851845648,-500.0,0.00013698,2]
[329942594,1718851845658,-506.12886963,0.00013698,2]
[329942595,1718851845667,-509.86099857,0.00013698,2]
[329942596,1718851845677,-369.0,0.00013698,2]
[329942597,1718851845686,-500.0,0.00013698,2]
[329942598,1718851845696,-500.0,0.00013698,2]
[329942599,1718851845706,-500.0,0.00013698,2]
[329942600,1718851845716,-500.0,0.00013698,2]
[329942601,1718851845726,-500.0,0.00013698,2]
[329942602,1718851845738,-500.0,0.00013698,2]
[329942603,1718851845747,-763.24,0.00013698,2]
[329942604,1718851845757,-500.0,0.00013698,2]
[329942605,1718851845767,-283.32993414,0.00013698,2]
[329942606,1718851845776,-500.0,0.00013698,5]
[329942607,1718851845786,-484.5,0.00013698,2]
[329942608,1718851845795,-500.0,0.00013698,2]
[329942609,1718851845805,-500.0,0.00013698,2]
[329942610,1718851845815,-250.0,0.00013698,2]
[329942611,1718851845824,-500.0,0.00013698,2]
[329942612,1718851845835,-503.27017721,0.00013698,2]
[329942613,1718851845844,-500.0,0.00013698,2]
[329942614,1718851845854,-500.0,0.00013698,2]
[329942615,1718851845863,-716.28,0.00013698,2]
[329942616,1718851845872,-500.0,0.00013698,2]
[329942617,1718851845882,-548.51,0.00013698,2]
[329942618,1718851845892,-500.0,0.00013698,2]
[329942619,1718851845901,-500.0,0.00013698,2]
[329942620,1718851845911,-948.39,0.00013698,2]
[329942621,1718851845920,-500.0,0.00013698,2]
[329942622,1718851845931,-502.45008486,0.00013698,2]
[329942623,1718851845940,-500.0,0.00013698,2]
[329942624,1718851845950,-500.0,0.00013698,2]
[329942625,1718851845959,-1113.98,0.00013698,2]
[329942626,1718851845969,-500.0,0.00013698,2]
[329942627,1718851845979,-500.0,0.00013698,2]
[329942628,1718851845991,-500.0,0.00013698,2]
[329942629,1718851846000,-504.17105222,0.00013698,2]
[329942630,1718851846009,-500.0,0.00013698,2]
[329942631,1718851846018,-500.0,0.00013698,2]
[329942632,1718851846027,-500.0,0.00013698,2]
[329942633,1718851846036,-251.31742612,0.00013698,2]
[329942634,1718851846046,-500.0,0.00013698,2]
[329942635,1718851846056,-855.71,0.00013698,2]
[329942636,1718851846065,-500.0,0.00013698,2]
[329942637,1718851846075,-500.0,0.00013698,2]
[329942638,1718851846084,-500.0,0.00013698,2]
[329942639,1718851846094,-1198.81,0.00013698,2]
[329942640,1718851846103,-518.03,0.00013698,2]
[329942641,1718851846112,-500.0,0.00013698,2]
[329942642,1718851846122,-500.0,0.00013698,2]
[329942643,1718851846131,-786.99,0.00013698,2]
[329942644,1718851846140,-500.0,0.00013698,2]
[329942645,1718851846150,-500.0,0.00013698,2]
[329942646,1718851846159,-500.0,0.00013698,2]
[329942661,1718851846521,-500.0,0.00013698,2]
[329942662,1718851846531,-500.0,0.00013698,2]
[329942663,1718851846541,-500.0,0.00013698,2]
[329942664,1718851846550,-500.0,0.00013698,2]
[329942665,1718851846560,-500.0,0.00013698,2]
[329942666,1718851846574,-500.0,0.00013698,2]
[329942667,1718851846584,-504.6459729,0.00013698,2]
[329942668,1718851846593,-500.0,0.00013698,2]
[329942669,1718851846603,-554.39,0.00013698,2]
[329942670,1718851846613,-781.07,0.00013698,2]
[329942671,1718851846622,-500.0,0.00013698,2]
[329942672,1718851846632,-500.0,0.00013698,2]
[329942673,1718851846642,-500.0,0.00013698,2]
[329942674,1718851846651,-497.7627423,0.00013698,2]
[329942675,1718851846660,-500.0,0.00013698,2]
[329942676,1718851846670,-500.0,0.00013698,2]
[329942677,1718851846679,-500.0,0.00013698,2]
[329942678,1718851846688,-1104.29,0.00013698,2]
[329942679,1718851846697,-500.0,0.00013698,2]
[329942680,1718851846706,-500.0,0.00013698,2]
[329942681,1718851846716,-500.0,0.00013698,2]
[329942682,1718851846726,-848.54,0.00013698,2]
[329942683,1718851846737,-507.1125825,0.00013698,2]
[329942684,1718851846746,-500.0,0.00013698,2]
[329942685,1718851846755,-500.0,0.00013698,2]
[329942686,1718851846765,-500.0,0.00013698,2]
[329942687,1718851846774,-500.0,0.00013698,2]
[329942688,1718851846784,-1313.47,0.00013698,2]
[329942689,1718851846793,-500.0,0.00013698,2]
[329942690,1718851846802,-781.0,0.00013698,2]
[329942691,1718851846811,-500.0,0.00013698,2]
[329942694,1718851846820,-500.0,0.00013698,2]
[329942695,1718851846830,-507.45900795,0.00013698,2]
[329942696,1718851846839,-841.3,0.00013698,2]
[329942697,1718851846849,-500.0,0.00013698,2]
[329942698,1718851846858,-500.0,0.00013698,2]
[329942699,1718851846867,-503.17097924,0.00013698,2]
[329942700,1718851846877,-500.0,0.00013698,2]
[329942701,1718851846886,-506.66657096,0.00013698,2]
[329942702,1718851846895,-500.0,0.00013698,2]
[329942703,1718851846904,-506.43321953,0.00013698,2]
[329942704,1718851846914,-500.0,0.00013698,2]
[329942705,1718851846923,-5411.05,0.00013698,2]
[329942706,1718851846933,-500.0,0.00013698,2]
[329942707,1718851846942,-525.91089333,0.00013698,2]
[329942708,1718851846952,-500.0,0.00013698,2]
[329942709,1718851846961,-506.5149633,0.00013698,2]
[329942710,1718851846971,-500.0,0.00013698,2]
[329942711,1718851846980,-575.60281198,0.00013698,2]
[329942712,1718851846990,-706.94,0.00013698,2]
[329942713,1718851847000,-500.0,0.00013698,2]
[329942714,1718851847009,-579.51130875,0.00013698,2]
[329942715,1718851847019,-500.0,0.00013698,2]
[329942716,1718851847028,-781.25,0.00013698,2]
[329942717,1718851847038,-500.0,0.00013698,2]
[329942718,1718851847047,-508.48464304,0.00013698,2]
[329942719,1718851847056,-500.0,0.00013698,2]
[329942720,1718851847066,-500.0,0.00013698,2]
[329942721,1718851847075,-500.0,0.00013698,2]
[329942722,1718851847085,-514.8693454,0.00013698,2]
[329942723,1718851847094,-503.02720733,0.00013698,2]
[329942724,1718851847103,-500.0,0.00013698,2]
[329942725,1718851847113,-504.09316372,0.00013698,2]
[329942726,1718851847122,-500.0,0.00013698,2]
[329942727,1718851847132,-552.43396617,0.00013698,2]
[329942728,1718851847141,-510.39513768,0.00013698,2]
[329942729,1718851847150,-500.0,0.00013698,2]
[329942730,1718851847159,-500.0,0.00013698,2]
[329942731,1718851847169,-500.0,0.00013698,2]
[329942732,1718851847178,-512.99607302,0.00013698,2]
[329942733,1718851847187,-501.28949274,0.00013698,2]
[329942734,1718851847196,-1144.58,0.00013698,2]
[329942735,1718851847206,-13623.07,0.00013698,2]
[329942736,1718851847215,-830.13,0.00013698,2]
[329942737,1718851847224,-500.0,0.00013698,2]
[329942738,1718851847233,-517.89758045,0.00013698,2]
[329942739,1718851847243,-500.0,0.00013698,2]
[329942740,1718851847253,-503.78012991,0.00013698,2]
[329942741,1718851847262,-500.0,0.00013698,2]
[329942742,1718851847272,-529.64030523,0.00013698,2]
[329942743,1718851847282,-500.0,0.00013698,2]
[329942744,1718851847292,-500.0,0.00013698,2]
[329942745,1718851847301,-500.0,0.00013698,2]
[329942746,1718851847311,-509.36815293,0.00013698,2]
[329942747,1718851847320,-505.79525425,0.00013698,2]
[329942748,1718851847330,-448.3115639,0.00013698,2]
[329942749,1718851847340,-500.0,0.00013698,2]
[329942750,1718851847350,-1285.18,0.00013698,2]
[329942751,1718851847360,-500.0,0.00013698,2]
[329942752,1718851847369,-500.0,0.00013698,2]
[329942753,1718851847378,-500.0,0.00013698,2]
[329942754,1718851847388,-500.0,0.00013698,2]
[329942755,1718851847397,-504.6414021,0.00013698,2]
[329942756,1718851847407,-500.0,0.00013698,2]
[329942757,1718851847416,-500.0,0.00013698,2]
[329942758,1718851847425,-6399.2,0.00013698,2]
[329942759,1718851847435,-500.0,0.00013698,2]
[329942760,1718851847444,-500.0,0.00013698,2]
[329942761,1718851847454,-500.0,0.00013698,2]
[329942762,1718851847463,-2572.45,0.00013698,2]
[329942763,1718851847472,-1252.68,0.00013698,2]
[329942764,1718851847482,-500.0,0.00013698,2]
[329942765,1718851847493,-510.59863895,0.00013698,2]
[329942766,1718851847502,-718.39,0.00013698,2]
[329942767,1718851847511,-506.77329223,0.00013698,2]
[329942768,1718851847521,-500.0,0.00013698,2]
[329942769,1718851847531,-1051.73,0.00013698,2]
[329942770,1718851847540,-507.0296388,0.00013698,2]
[329942771,1718851847550,-1501.05,0.00013698,2]
[329942772,1718851847560,-504.37361618,0.00013698,2]
[329942773,1718851847575,-500.0,0.00013698,2]
[329942774,1718851847585,-506.47080499,0.00013698,2]
[329942775,1718851847594,-633.47,0.00013698,2]
[329942776,1718851847604,-500.0,0.00013698,2]
[329942777,1718851847615,-500.0,0.00013698,2]
[329942778,1718851847625,-2456.3,0.00013698,2]
[329942779,1718851847634,-509.09056882,0.00013698,2]
[329942780,1718851847645,-500.0,0.00013698,2]
[329942781,1718851847655,-500.0,0.00013698,2]
[329942782,1718851847664,-500.0,0.00013698,2]
[329942783,1718851847674,-500.0,0.00013698,2]
[329942784,1718851847683,-500.0,0.00013698,2]
[329942785,1718851847693,-887.97,0.00013698,2]
[329942786,1718851847702,-500.0,0.00013698,2]
[329942787,1718851847712,-504.71298096,0.00013698,2]
[329942788,1718851847722,-658.11,0.00013698,2]
[329942789,1718851847732,-496.99739212,0.00013698,2]
[329942790,1718851847742,-729.46,0.00013698,2]
[329942791,1718851847752,-502.51454561,0.00013698,2]
[329942792,1718851847762,-501.93898465,0.00013698,2]
[329942793,1718851847772,-1572.26,0.00013698,2]
[329942794,1718851847781,-513.68214539,0.00013698,2]
[329942795,1718851847791,-41569.78,0.00013698,2]
[329942796,1718851847800,-500.0,0.00013698,2]
[329942797,1718851847810,-1539.26,0.00013698,2]
[329942798,1718851847820,-509.04991531,0.00013698,2]
[329942799,1718851847830,-505.33053657,0.00013698,2]
[329942800,1718851847840,-502.7226086,0.00013698,2]
[329942801,1718851847850,-3818.66,0.00013698,2]
[329942802,1718851847860,-820.58,0.00013698,2]
[329942803,1718851847869,-500.0,0.00013698,2]
[329942804,1718851847879,-500.0,0.00013698,2]
[329942805,1718851847889,-507.16853541,0.00013698,2]
[329942806,1718851847898,-460.0,0.00013698,2]
[329942807,1718851847908,-500.6129334,0.00013698,2]
[329942808,1718851847918,-1281.56,0.00013698,2]
[329942809,1718851847927,-500.0,0.00013698,2]
[329942810,1718851847937,-500.91393154,0.00013698,2]
[329942811,1718851847946,-1069.05,0.00013698,2]
[329942812,1718851847955,-509.46076708,0.00013698,2]
[329942813,1718851847965,-504.42483821,0.00013698,2]
[329942814,1718851847974,-1721.64,0.00013698,2]
[329942815,1718851847983,-506.31857443,0.00013698,2]
[329942816,1718851847995,-500.0,0.00013698,2]
[329942817,1718851848005,-504.73677149,0.00013698,2]
[329942818,1718851848015,-500.0,0.00013698,2]
[329942819,1718851848025,-500.0,0.00013698,2]
[329942820,1718851848034,-502.22621239,0.00013698,2]
[329942821,1718851848044,-513.8771145,0.00013698,2]
[329942822,1718851848053,-521.58,0.00013698,2]
[329942823,1718851848063,-501.19760287,0.00013698,2]
[329942824,1718851848073,-1101.51,0.00013698,2]
[329942825,1718851848083,-500.0,0.00013698,2]
[329942826,1718851848092,-15848.08,0.00013698,2]
[329942827,1718851848102,-500.0,0.00013698,2]
[329942828,1718851848111,-494.74592089,0.00013698,2]
[329942829,1718851848120,-502.06027885,0.00013698,2]
[329942830,1718851848130,-500.0,0.00013698,2]
[329942831,1718851848140,-491.67563898,0.00013698,2]
[329942832,1718851848149,-1150.08,0.00013698,2]
[329942833,1718851848159,-500.0,0.00013698,2]
[329942834,1718851848168,-500.0,0.00013698,2]
[329942835,1718851848178,-3504.08,0.00013698,2]
[329942836,1718851848187,-497.40652514,0.00013698,2]
[329942837,1718851848197,-509.840861,0.00013698,2]
[329942838,1718851848206,-500.0,0.00013698,2]
[329942839,1718851848216,-41661.84,0.00013698,2]
[329942840,1718851848225,-500.0,0.00013698,2]
[329942841,1718851848235,-500.0,0.00013698,2]
[329942842,1718851848247,-497.85720772,0.00013698,2]
[329942843,1718851848255,-507.86711049,0.00013698,2]
[329942844,1718851848264,-503.7687637,0.00013698,2]
[329942845,1718851848273,-704.14,0.00013698,2]
[329942846,1718851848283,-500.0,0.00013698,2]
[329942847,1718851848293,-612.99,0.00013698,2]
[329942848,1718851848303,-515.64394699,0.00013698,2]
[329942849,1718851848312,-895.57,0.00013698,2]
[329942850,1718851848321,-507.70616579,0.00013698,2]
[329942851,1718851848330,-916.79,0.00013698,2]
[329942852,1718851848340,-541.89896935,0.00013698,2]
[329942853,1718851848349,-513.39146826,0.00013698,2]
[329942854,1718851848359,-500.0,0.00013698,2]
[329942855,1718851848368,-512.05705091,0.00013698,2]
[329942856,1718851848378,-2238.99,0.00013698,2]
[329942857,1718851848387,-1985.87,0.00013698,2]
[329942858,1718851848396,-500.0,0.00013698,2]